[Event "European Womens-ch 2025"]
[Site "Rhodes"]
[Date "2025.04.11"]
[Round "11.9"]
[White "Urh, Zala"]
[Black "Vega Gutierrez, Sabrina"]
[Result "1/2-1/2"]
[Annotator "ChessBase"]
[ECO "D06"]
[WhiteElo "2244"]
[BlackElo "2380"]
[PlyCount "126"]
[EventDate "2025.03.29"]
[EventType "swiss"]
[EventCountry "GRE"]
[SourceTitle "playchess.com"]
[Source "ChessBase"]
[SourceQuality "1"]
[TimeControl "40/5400+30:1800+30"]

1. d4 {[%emt 0:00:01]} d5 {[%emt 0:00:07]} 2. c4 {[%emt 0:00:05]} c5 {[%emt 0:00:06]} 3. cxd5 {[%emt 0:11:13]} Nf6 {[%emt 0:00:14]} 4. Nf3 {[%emt 0:04:35]} cxd4 {[%emt 0:00:20]} 5. Nxd4 {[%emt 0:05:18]} Nxd5 {[%emt 0:00:12]} 6. e4 {[%emt 0:06:23]} Nf6 {[%emt 0:00:20]} 7. Nc3 {[%emt 0:01:34]} e5 {[%emt 0:00:20]} 8. Nb3 {[%emt 0:08:54]} Qxd1+ {[%emt 0:01:19]} 9. Kxd1 {[%emt 0:00:05]} Nc6 {[%emt 0:01:36]} 10. Bc4 {[%emt 0:06:06]} Be6 {[%emt 0:13:02]} 11. Bxe6 {[%emt 0:13:39]} fxe6 {[%emt 0:00:08]} 12. Be3 {[%emt 0:00:15]} Rd8+ {[%emt 0:02:03]} 13. Kc1 {[%emt 0:04:53]} Ng4 {[%emt 0:03:38]} 14. Rd1 {[%emt 0:02:44]} Nxe3 {[%emt 0:15:46]} 15. Rxd8+ {[%emt 0:01:11]} Kxd8 {[%emt 0:00:40]} 16. fxe3 {[%emt 0:00:06]} Bb4 {[%emt 0:00:32]} 17. Kd2 {[%emt 0:04:30]} Rf8 {[%emt 0:05:12]} 18. Ke2 {[%emt 0:00:32]} Bxc3 {[%emt 0:00:07]} 19. bxc3 {[%emt 0:00:04]} Ke7 {[%emt 0:00:11]} 20. Rb1 {[%emt 0:03:14]} b6 {[%emt 0:02:59]} 21. a4 {[%emt 0:02:20]} Nb8 {[%emt 0:11:28]} 22. a5 {[%emt 0:08:06]} Rc8 {[%emt 0:05:46]} 23. axb6 {[%emt 0:01:42]} axb6 {[%emt 0:00:06]} 24. Kd3 {[%emt 0:00:29]} Nd7 {[%emt 0:02:28]} 25. Ra1 {[%emt 0:05:09]} Rc7 {[%emt 0:00:09]} 26. Ra8 {[%emt 0:01:42]} Kd6 {[%emt 0:14:25]} 27. Rg8 {[%emt 0:05:05]} Ra7 {[%emt 0:06:31]} 28. Kc4 {[%emt 0:03:27]} Nf6 {[%emt 0:01:04]} 29. Rd8+ {[%emt 0:00:36]} Ke7 {[%emt 0:04:40]} 30. Rb8 {[%emt 0:00:33]} Nxe4 {[%emt 0:01:35]} 31. Rxb6 {[%emt 0:00:44]} Rc7+ {[%emt 0:01:02]} 32. Kd3 {[%emt 0:00:16]} Nxc3 {[%emt 0:00:28]} 33. e4 {[%emt 0:00:44]} Na4 {[%emt 0:02:37]} 34. Rb4 {[%emt 0:00:40]} Nb2+ {[%emt 0:00:19]} 35. Kd2 {[%emt 0:00:21]} Rd7+ {[%emt 0:00:48]} 36. Ke3 {[%emt 0:00:39]} Nd3 {[%emt 0:01:18]} 37. Rb6 {[%emt 0:00:26]} Nf4 {[%emt 0:02:47]} 38. g3 {[%emt 0:00:13]} Rd3+ {[%emt 0:00:28]} 39. Kf2 {[%emt 0:00:07]} Nh3+ {[%emt 0:01:02]} 40. Ke2 {[%emt 0:00:00]} Rc3 {[%emt 0:00:00]} 41. Nd2 {[%emt 0:13:26]} Kf6 {[%emt 0:04:10]} 42. Rb5 {[%emt 0:02:19]} h5 {[%emt 0:08:56]} 43. Rb8 {[%emt 0:07:25]} g5 {[%emt 0:07:08]} 44. Rh8 {[%emt 0:01:39]} h4 {[%emt 0:02:34]} 45. Nf3 {[%emt 0:02:59]} Rc2+ {[%emt 0:08:02]} 46. Ke3 {[%emt 0:00:14]} Rg2 {[%emt 0:01:43]} 47. Rh6+ {[%emt 0:06:29]} Kg7 {[%emt 0:00:40]} 48. Rxe6 {[%emt 0:00:19]} hxg3 {[%emt 0:00:16]} 49. hxg3 {[%emt 0:00:03]} Rxg3 {[%emt 0:00:22]} 50. Rxe5 {[%emt 0:00:21]} g4 {[%emt 0:00:25]} 51. Rf5 {[%emt 0:00:04]} Kg6 {[%emt 0:01:52]} 52. Rf8 {[%emt 0:00:07]} Ng1 {[%emt 0:00:39]} 53. Rg8+ {[%emt 0:01:59]} Kh7 {[%emt 0:00:20]} 54. Rg5 {[%emt 0:00:35]} Rxf3+ {[%emt 0:01:11]} 55. Kd4 {[%emt 0:00:05]} Ne2+ {[%emt 0:00:39]} 56. Kd5 {[%emt 0:00:06]} g3 {[%emt 0:00:10]} 57. e5 {[%emt 0:00:09]} Rf2 {[%emt 0:01:27]} 58. e6 {[%emt 0:00:28]} Nf4+ {[%emt 0:00:30]} 59. Ke4 {[%emt 0:01:29]} g2 {[%emt 0:00:28]} 60. e7 {[%emt 0:00:07]} Nh3 {[%emt 0:00:33]} 61. Ke3 {[%emt 0:00:56]} Nxg5 {[%emt 0:00:31]} 62. Kxf2 {[%emt 0:00:07]} Ne4+ {[%emt 0:00:21]} 63. Kxg2 {[%emt 0:00:03]} Nf6 {[%emt 0:00:06]} 1/2-1/2

[Event "European Womens-ch 2025"]
[Site "Rhodes"]
[Date "2025.04.11"]
[Round "11.10"]
[White "Milliet, Sophie"]
[Black "Toncheva, Nadya"]
[Result "1-0"]
[Annotator "ChessBase"]
[ECO "D21"]
[WhiteElo "2371"]
[BlackElo "2329"]
[PlyCount "77"]
[EventDate "2025.03.29"]
[EventType "swiss"]
[EventCountry "GRE"]
[SourceTitle "playchess.com"]
[Source "ChessBase"]
[SourceQuality "1"]
[TimeControl "40/5400+30:1800+30"]

1. d4 {[%emt 0:00:03]} d5 {[%emt 0:00:10]} 2. c4 {[%emt 0:00:03]} dxc4 {[%emt 0:00:06]} 3. Nf3 {[%emt 0:00:08]} c5 {[%emt 0:00:17]} 4. e3 {[%emt 0:10:32]} cxd4 {[%emt 0:01:17]} 5. Qxd4 {[%emt 0:00:43]} Qxd4 {[%emt 0:01:55]} 6. Nxd4 {[%emt 0:00:04]} a6 {[%emt 0:02:28]} 7. Bxc4 {[%emt 0:00:32]} Nf6 {[%emt 0:03:21]} 8. Nc3 {[%emt 0:04:07]} e6 {[%emt 0:04:48]} 9. Bd2 {[%emt 0:06:52]} Be7 {[%emt 0:04:11]} 10. Rc1 {[%emt 0:01:02]} O-O {[%emt 0:02:55]} 11. Be2 {[%emt 0:00:59]} Nbd7 {[%emt 0:23:29]} 12. Nb3 {[%emt 0:01:01]} b6 {[%emt 0:03:12]} 13. f3 {[%emt 0:06:02]} Bb7 {[%emt 0:00:42]} 14. e4 {[%emt 0:00:23]} Rac8 {[%emt 0:06:33]} 15. Kf2 {[%emt 0:06:09]} Nc5 {[%emt 0:02:02]} 16. Nxc5 {[%emt 0:00:43]} Bxc5+ {[%emt 0:00:07]} 17. Be3 {[%emt 0:00:03]} Nd7 {[%emt 0:00:20]} 18. Rhd1 {[%emt 0:04:10]} Rfd8 {[%emt 0:13:33]} 19. Na4 {[%emt 0:14:43]} Bxe3+ {[%emt 0:03:42]} 20. Kxe3 {[%emt 0:00:03]} Rxc1 {[%emt 0:00:06]} 21. Rxc1 {[%emt 0:00:03]} Rc8 {[%emt 0:00:22]} 22. Rd1 {[%emt 0:07:19]} Bc6 {[%emt 0:00:06]} 23. Bxa6 {[%emt 0:08:48]} Ra8 {[%emt 0:00:36]} 24. Bb7 {[%emt 0:00:14]} Bxa4 {[%emt 0:01:51]} 25. Rxd7 {[%emt 0:00:13]} Bxd7 {[%emt 0:03:34]} 26. Bxa8 {[%emt 0:00:02]} e5 {[%emt 0:00:43]} 27. Bd5 {[%emt 0:08:11]} Kf8 {[%emt 0:00:06]} 28. Kd3 {[%emt 0:01:08]} Ke7 {[%emt 0:00:20]} 29. Kc4 {[%emt 0:05:38]} g6 {[%emt 0:04:12]} 30. Kb4 {[%emt 0:00:53]} f5 {[%emt 0:03:14]} 31. a4 {[%emt 0:03:35]} Kd6 {[%emt 0:00:20]} 32. a5 {[%emt 0:02:02]} bxa5+ {[%emt 0:00:51]} 33. Kxa5 {[%emt 0:00:01]} g5 {[%emt 0:03:02]} 34. b4 {[%emt 0:04:23]} f4 {[%emt 0:05:20]} 35. b5 {[%emt 0:00:21]} Kc7 {[%emt 0:03:25]} 36. b6+ {[%emt 0:00:11]} Kb8 {[%emt 0:00:04]} 37. Kb4 {[%emt 0:03:25]} g4 {[%emt 0:01:54]} 38. fxg4 {[%emt 0:02:06]} Bxg4 {[%emt 0:01:12]} 39. Kc5 {[%emt 0:00:10]} 1-0

[Event "European Womens-ch 2025"]
[Site "Rhodes"]
[Date "2025.04.11"]
[Round "11.11"]
[White "Kiolbasa, Oliwia"]
[Black "Mamedjarova, Turkan"]
[Result "1-0"]
[Annotator "ChessBase"]
[ECO "C54"]
[WhiteElo "2360"]
[BlackElo "2206"]
[PlyCount "83"]
[EventDate "2025.03.29"]
[EventType "swiss"]
[EventCountry "GRE"]
[SourceTitle "playchess.com"]
[Source "ChessBase"]
[SourceQuality "1"]
[TimeControl "40/5400+30:1800+30"]

1. e4 {[%emt 0:00:25]} e5 {[%emt 0:00:07]} 2. Nf3 {[%emt 0:00:10]} Nc6 {[%emt 0:00:02]} 3. Bc4 {[%emt 0:00:08]} Bc5 {[%emt 0:00:07]} 4. c3 {[%emt 0:00:38]} Nf6 {[%emt 0:00:09]} 5. d3 {[%emt 0:00:07]} d6 {[%emt 0:00:15]} 6. b4 {[%emt 0:04:07]} Bb6 {[%emt 0:00:05]} 7. a4 {[%emt 0:00:07]} a6 {[%emt 0:00:25]} 8. O-O {[%emt 0:03:39]} h6 {[%emt 0:03:41]} 9. Nbd2 {[%emt 0:08:06]} O-O {[%emt 0:00:39]} 10. Ba2 {[%emt 0:04:57]} Be6 {[%emt 1:30:00]} 11. Nc4 {[%emt 0:03:33]} Bxc4 {[%emt 0:00:00]} 12. Bxc4 {[%emt 0:02:15]} Ne7 {[%emt 0:00:00]} 13. a5 {[%emt 0:12:46]} Ba7 {[%emt 0:00:00]} 14. Bb3 {[%emt 0:00:05]} Ng6 {[%emt 0:00:00]} 15. c4 {[%emt 0:08:19]} c6 {[%emt 0:00:00]} 16. Qe2 {[%emt 0:06:36]} Nh5 {[%emt 0:00:00]} 17. g3 {[%emt 0:03:56]} Qd7 {[%emt 0:00:00]} 18. Nh4 {[%emt 0:02:52]} Nxh4 {[%emt 0:00:00]} 19. Qxh5 {[%emt 0:00:08]} Ng6 {[%emt 0:00:00]} 20. Be3 {[%emt 0:13:18]} Kh7 {[%emt 0:00:00]} 21. Qf5 {[%emt 0:07:24]} Qd8 {[%emt 0:00:00]} 22. c5 {[%emt 0:04:29]} d5 {[%emt 0:00:00]} 23. h4 {[%emt 0:00:14]} Kh8 {[%emt 0:00:00]} 24. h5 {[%emt 0:02:36]} Ne7 {[%emt 0:00:00]} 25. Qxe5 {[%emt 0:00:05]} Bb8 {[%emt 0:00:00]} 26. Qb2 {[%emt 0:00:07]} f6 {[%emt 0:00:00]} 27. Rae1 {[%emt 0:01:31]} Qd7 {[%emt 0:00:00]} 28. Kg2 {[%emt 0:04:29]} dxe4 {[%emt 0:00:00]} 29. dxe4 {[%emt 0:00:07]} Qg4 {[%emt 0:00:00]} 30. f4 {[%emt 0:02:48]} Qxh5 {[%emt 0:00:00]} 31. Qd4 {[%emt 0:02:42]} Qg4 {[%emt 0:00:00]} 32. Rh1 {[%emt 0:01:16]} Ng6 {[%emt 0:00:00]} 33. Bd1 {[%emt 0:00:20]} Qc8 {[%emt 0:00:00]} 34. Rh5 {[%emt 0:00:42]} Kh7 {[%emt 0:00:00]} 35. f5 {[%emt 0:01:03]} Ne5 {[%emt 0:00:00]} 36. Bxh6 {[%emt 0:00:56]} gxh6 {[%emt 0:00:00]} 37. Reh1 {[%emt 0:00:03]} Rg8 {[%emt 0:00:02]} 38. Rxh6+ {[%emt 0:00:05]} Kg7 {[%emt 0:00:01]} 39. Bb3 {[%emt 0:00:15]} Bc7 {[%emt 0:03:09]} 40. Rh7+ {[%emt 0:00:00]} Kf8 {[%emt 0:00:00]} 41. Bxg8 {[%emt 0:01:36]} Qd8 {[%emt 0:00:28]} 42. Be6 {[%emt 0:05:39]} 1-0

[Event "European Womens-ch 2025"]
[Site "Rhodes"]
[Date "2025.04.11"]
[Round "11.12"]
[White "Mammadova, Gulnar"]
[Black "Kirtadze, Anastasia"]
[Result "1-0"]
[Annotator "ChessBase"]
[ECO "B12"]
[WhiteElo "2342"]
[BlackElo "2180"]
[PlyCount "55"]
[EventDate "2025.03.29"]
[EventType "swiss"]
[EventCountry "GRE"]
[SourceTitle "playchess.com"]
[Source "ChessBase"]
[SourceQuality "1"]
[TimeControl "40/5400+30:1800+30"]

1. e4 {[%emt 0:00:03]} c6 {[%emt 0:00:05]} 2. d4 {[%emt 0:00:18]} d5 {[%emt 0:00:04]} 3. e5 {[%emt 0:00:09]} c5 {[%emt 0:00:09]} 4. Nf3 {[%emt 0:02:56]} cxd4 {[%emt 0:00:34]} 5. Qxd4 {[%emt 0:00:25]} Nc6 {[%emt 0:00:53]} 6. Qf4 {[%emt 0:00:20]} e6 {[%emt 0:03:09]} 7. Bd3 {[%emt 0:00:47]} Bc5 {[%emt 0:10:30]} 8. Qg3 {[%emt 0:04:07]} g6 {[%emt 0:02:27]} 9. a3 {[%emt 0:06:12]} h5 {[%emt 0:11:12]} 10. b4 {[%emt 0:05:35]} Be7 {[%emt 0:01:55]} 11. h4 {[%emt 0:04:54]} a6 {[%emt 0:17:50]} 12. O-O {[%emt 0:01:21]} Nh6 {[%emt 0:02:20]} 13. Bxh6 {[%emt 0:09:02]} Rxh6 {[%emt 0:00:09]} 14. Nbd2 {[%emt 0:01:37]} Kf8 {[%emt 0:11:03]} 15. c4 {[%emt 0:03:05]} dxc4 {[%emt 0:02:28]} 16. Bxc4 {[%emt 0:02:11]} b5 {[%emt 0:01:16]} 17. Qf4 {[%emt 0:02:20]} g5 {[%emt 0:11:11]} 18. hxg5 {[%emt 0:04:52]} Rg6 {[%emt 0:00:56]} 19. Be2 {[%emt 0:00:16]} Bb7 {[%emt 0:06:06]} 20. Rad1 {[%emt 0:05:15]} Bxg5 {[%emt 0:06:30]} 21. Nxg5 {[%emt 0:00:08]} Qxg5 {[%emt 0:01:02]} 22. Qxg5 {[%emt 0:00:06]} Rxg5 {[%emt 0:00:01]} 23. f4 {[%emt 0:00:35]} Rg8 {[%emt 0:02:07]} 24. Bf3 {[%emt 0:00:52]} Rd8 {[%emt 0:02:04]} 25. Nb3 {[%emt 0:03:04]} Ke7 {[%emt 0:01:03]} 26. Rc1 {[%emt 0:02:34]} Rc8 {[%emt 0:01:02]} 27. Rc5 {[%emt 0:04:43]} Rc7 {[%emt 0:03:15]} 28. Na5 {[%emt 0:01:56]} 1-0

[Event "European Womens-ch 2025"]
[Site "Rhodes"]
[Date "2025.04.11"]
[Round "11.13"]
[White "Arabidze, Meri"]
[Black "Doluhanova, Evgeniya"]
[Result "1-0"]
[Annotator "ChessBase"]
[ECO "E20"]
[WhiteElo "2447"]
[BlackElo "2287"]
[PlyCount "83"]
[EventDate "2025.03.29"]
[EventType "swiss"]
[EventCountry "GRE"]
[SourceTitle "playchess.com"]
[Source "ChessBase"]
[SourceQuality "1"]
[TimeControl "40/5400+30:1800+30"]

1. d4 {[%emt 0:00:03]} Nf6 {[%emt 0:00:04]} 2. c4 {[%emt 0:00:07]} e6 {[%emt 0:00:03]} 3. Nc3 {[%emt 0:00:06]} Bb4 {[%emt 0:00:04]} 4. g3 {[%emt 0:00:07]} O-O {[%emt 0:00:25]} 5. Bg2 {[%emt 0:00:11]} d6 {[%emt 0:06:11]} 6. Nf3 {[%emt 0:02:59]} Nbd7 {[%emt 0:02:18]} 7. O-O {[%emt 0:08:56]} e5 {[%emt 0:01:13]} 8. Qc2 {[%emt 0:03:59]} c6 {[%emt 0:10:27]} 9. a3 {[%emt 0:02:59]} Bxc3 {[%emt 0:06:33]} 10. Qxc3 {[%emt 0:00:29]} e4 {[%emt 0:00:19]} 11. Ng5 {[%emt 0:03:45]} d5 {[%emt 0:00:13]} 12. b3 {[%emt 0:02:39]} b5 {[%emt 0:04:48]} 13. cxb5 {[%emt 0:05:16]} cxb5 {[%emt 0:00:06]} 14. Bf4 {[%emt 0:02:16]} h6 {[%emt 0:08:17]} 15. Nh3 {[%emt 0:01:06]} Nb6 {[%emt 0:00:22]} 16. Rac1 {[%emt 0:05:20]} Bf5 {[%emt 0:05:41]} 17. f3 {[%emt 0:02:14]} Qe7 {[%emt 0:07:02]} 18. g4 {[%emt 0:03:46]} Rfc8 {[%emt 0:05:19]} 19. Qe3 {[%emt 0:05:46]} Bg6 {[%emt 0:00:55]} 20. g5 {[%emt 0:08:13]} hxg5 {[%emt 0:01:06]} 21. Bxg5 {[%emt 0:02:40]} Qxa3 {[%emt 0:00:33]} 22. Rxc8+ {[%emt 0:03:44]} Rxc8 {[%emt 0:00:17]} 23. Bxf6 {[%emt 0:03:31]} gxf6 {[%emt 0:00:07]} 24. fxe4 {[%emt 0:00:49]} dxe4 {[%emt 0:01:51]} 25. Nf4 {[%emt 0:04:59]} f5 {[%emt 0:21:12]} 26. h4 {[%emt 0:06:22]} Qb2 {[%emt 0:08:41]} 27. Kh2 {[%emt 0:09:00]} Qc3 {[%emt 0:02:43]} 28. Qg1 {[%emt 0:01:12]} Qc7 {[%emt 0:04:03]} 29. h5 {[%emt 0:01:32]} Nd5 {[%emt 0:00:29]} 30. e3 {[%emt 0:00:05]} Nxf4 {[%emt 0:00:24]} 31. Rxf4 {[%emt 0:00:20]} Bxh5 {[%emt 0:03:38]} 32. Bxe4+ {[%emt 0:00:21]} Kf8 {[%emt 0:00:29]} 33. Bxf5 {[%emt 0:04:28]} Re8 {[%emt 0:00:11]} 34. Qf2 {[%emt 0:02:05]} Bd1 {[%emt 0:00:36]} 35. b4 {[%emt 0:02:00]} Bb3 {[%emt 0:00:07]} 36. Qg3 {[%emt 0:03:05]} Re7 {[%emt 0:00:41]} 37. e4 {[%emt 0:00:47]} f6 {[%emt 0:00:30]} 38. Qh4 {[%emt 0:00:41]} Qc2+ {[%emt 0:00:56]} 39. Rf2 {[%emt 0:00:09]} Qc7+ {[%emt 0:00:04]} 40. e5 {[%emt 0:00:00]} Rf7 {[%emt 0:00:00]} 41. Bg6 {[%emt 0:04:00]} fxe5 {[%emt 0:08:25]} 42. Bxf7 {[%emt 0:00:29]} 1-0

[Event "European Womens-ch 2025"]
[Site "Rhodes"]
[Date "2025.04.11"]
[Round "11.14"]
[White "Beydullayeva, Govhar"]
[Black "Mkrtchyan, Mariam"]
[Result "1/2-1/2"]
[Annotator "ChessBase"]
[ECO "D17"]
[WhiteElo "2400"]
[BlackElo "2282"]
[PlyCount "166"]
[EventDate "2025.03.29"]
[EventType "swiss"]
[EventCountry "GRE"]
[SourceTitle "playchess.com"]
[Source "ChessBase"]
[SourceQuality "1"]
[TimeControl "40/5400+30:1800+30"]

1. d4 {[%emt 0:00:05]} d5 {[%emt 0:02:30]} 2. c4 {[%emt 0:00:08]} c6 {[%emt 0:00:06]} 3. Nf3 {[%emt 0:00:04]} Nf6 {[%emt 0:00:05]} 4. Nc3 {[%emt 0:00:06]} dxc4 {[%emt 0:00:05]} 5. a4 {[%emt 0:00:10]} Bf5 {[%emt 0:00:08]} 6. Ne5 {[%emt 0:00:17]} e6 {[%emt 0:00:15]} 7. f3 {[%emt 0:00:12]} c5 {[%emt 0:00:19]} 8. e4 {[%emt 0:10:39]} cxd4 {[%emt 0:00:16]} 9. exf5 {[%emt 0:00:04]} Nc6 {[%emt 0:00:08]} 10. Nxc6 {[%emt 0:04:27]} bxc6 {[%emt 0:00:06]} 11. fxe6 {[%emt 0:04:35]} fxe6 {[%emt 0:00:05]} 12. Bxc4 {[%emt 0:08:19]} dxc3 {[%emt 0:00:11]} 13. Qe2 {[%emt 0:03:34]} cxb2 {[%emt 0:01:28]} 14. Qxe6+ {[%emt 0:08:20]} Qe7 {[%emt 0:00:11]} 15. Qxe7+ {[%emt 0:01:27]} Bxe7 {[%emt 0:00:10]} 16. Bxb2 {[%emt 0:00:02]} O-O-O {[%emt 0:07:18]} 17. O-O {[%emt 0:08:08]} Bc5+ {[%emt 0:00:27]} 18. Kh1 {[%emt 0:00:05]} Bd4 {[%emt 0:00:07]} 19. Rab1 {[%emt 0:06:25]} Bxb2 {[%emt 0:01:14]} 20. Rxb2 {[%emt 0:00:01]} Kc7 {[%emt 0:00:09]} 21. Rc1 {[%emt 0:03:12]} Rhe8 {[%emt 0:17:03]} 22. Kg1 {[%emt 0:02:52]} Nd5 {[%emt 0:20:24]} 23. Kf2 {[%emt 0:08:47]} a5 {[%emt 0:04:15]} 24. Bxd5 {[%emt 0:03:45]} Rxd5 {[%emt 0:00:07]} 25. Rcb1 {[%emt 0:01:57]} Kd6 {[%emt 0:01:07]} 26. Rc1 {[%emt 0:02:22]} Kc7 {[%emt 0:07:55]} 27. Rcb1 {[%emt 0:01:55]} Kd6 {[%emt 0:00:27]} 28. Rc2 {[%emt 0:09:52]} Kc7 {[%emt 0:03:49]} 29. g4 {[%emt 0:04:13]} Rd4 {[%emt 0:06:05]} 30. Rcb2 {[%emt 0:00:15]} Kd6 {[%emt 0:00:57]} 31. Rb7 {[%emt 0:03:31]} Re7 {[%emt 0:00:14]} 32. Rxe7 {[%emt 0:00:08]} Kxe7 {[%emt 0:00:01]} 33. Rb7+ {[%emt 0:00:05]} Kf6 {[%emt 0:03:51]} 34. Rc7 {[%emt 0:00:30]} Rc4 {[%emt 0:05:21]} 35. h4 {[%emt 0:00:51]} h6 {[%emt 0:00:54]} 36. h5 {[%emt 0:00:29]} Rxa4 {[%emt 0:05:19]} 37. Rxc6+ {[%emt 0:00:04]} Kf7 {[%emt 0:00:08]} 38. Ra6 {[%emt 0:02:25]} Ra3 {[%emt 0:00:06]} 39. Kg3 {[%emt 0:00:35]} Ra4 {[%emt 0:00:19]} 40. Ra8 {[%emt 0:00:00]} Ke7 {[%emt 0:00:00]} 41. Ra7+ {[%emt 0:04:31]} Kf6 {[%emt 0:04:36]} 42. Kf2 {[%emt 0:01:21]} Ra2+ {[%emt 0:05:30]} 43. Ke3 {[%emt 0:00:06]} Ra4 {[%emt 0:00:15]} 44. Ke2 {[%emt 0:04:33]} Ra3 {[%emt 0:00:20]} 45. Kf2 {[%emt 0:07:58]} Ra2+ {[%emt 0:00:29]} 46. Kg3 {[%emt 0:00:16]} Ra4 {[%emt 0:00:07]} 47. Kg2 {[%emt 0:01:35]} Ra2+ {[%emt 0:03:14]} 48. Kf1 {[%emt 0:00:07]} Ra1+ {[%emt 0:00:30]} 49. Ke2 {[%emt 0:00:04]} Ra3 {[%emt 0:00:04]} 50. Ra6+ {[%emt 0:00:26]} Kf7 {[%emt 0:01:17]} 51. Kf2 {[%emt 0:00:15]} Ke7 {[%emt 0:01:56]} 52. Ra7+ {[%emt 0:03:07]} Kf8 {[%emt 0:07:11]} 53. Kg2 {[%emt 0:02:33]} Kg8 {[%emt 0:02:59]} 54. Kg3 {[%emt 0:00:11]} Ra4 {[%emt 0:00:03]} 55. f4 {[%emt 0:00:42]} Ra3+ {[%emt 0:00:02]} 56. Kf2 {[%emt 0:00:51]} Kf8 {[%emt 0:00:10]} 57. Kg2 {[%emt 0:02:13]} Ra2+ {[%emt 0:06:43]} 58. Kf3 {[%emt 0:01:01]} Ra4 {[%emt 0:00:01]} 59. Ra8+ {[%emt 0:01:25]} Ke7 {[%emt 0:02:31]} 60. Ra6 {[%emt 0:01:16]} Kf7 {[%emt 0:04:04]} 61. Ra7+ {[%emt 0:00:04]} Kf6 {[%emt 0:00:45]} 62. Ra6+ {[%emt 0:00:04]} Ke7 {[%emt 0:00:36]} 63. Ra8 {[%emt 0:01:01]} Kf6 {[%emt 0:00:35]} 64. Rf8+ {[%emt 0:00:45]} Ke7 {[%emt 0:00:09]} 65. Rf5 {[%emt 0:00:40]} Ke6 {[%emt 0:00:48]} 66. Re5+ {[%emt 0:02:40]} Kf6 {[%emt 0:00:11]} 67. Rf5+ {[%emt 0:00:08]} Ke6 {[%emt 0:00:04]} 68. Re5+ {[%emt 0:03:49]} Kf6 {[%emt 0:00:03]} 69. Rb5 {[%emt 0:00:49]} Ra3+ {[%emt 0:00:51]} 70. Kf2 {[%emt 0:00:24]} Ra2+ {[%emt 0:00:29]} 71. Kg3 {[%emt 0:00:06]} Ra3+ {[%emt 0:01:04]} 72. Kh4 {[%emt 0:00:56]} Ra4 {[%emt 0:00:03]} 73. Rb6+ {[%emt 0:00:10]} Kf7 {[%emt 0:00:41]} 74. Rb7+ {[%emt 0:00:09]} Kf6 {[%emt 0:00:23]} 75. Rb6+ {[%emt 0:00:46]} Kf7 {[%emt 0:00:04]} 76. Kg3 {[%emt 0:01:10]} Rb4 {[%emt 0:01:25]} 77. Ra6 {[%emt 0:00:11]} Rb3+ {[%emt 0:00:54]} 78. Kh4 {[%emt 0:01:11]} Rb4 {[%emt 0:00:44]} 79. Ra7+ {[%emt 0:00:12]} Kf6 {[%emt 0:00:11]} 80. Ra6+ {[%emt 0:00:07]} Kf7 {[%emt 0:00:01]} 81. Ra7+ {[%emt 0:00:09]} Kf6 {[%emt 0:00:04]} 82. Ra6+ {[%emt 0:00:02]} Kf7 {[%emt 0:00:26]} 83. Ra7+ {[%emt 0:00:05]} Kf6 1/2-1/2

[Event "European Womens-ch 2025"]
[Site "Rhodes"]
[Date "2025.04.11"]
[Round "11.15"]
[White "Calzetta Ruiz, Monica"]
[Black "Fataliyeva, Ulviyya"]
[Result "0-1"]
[Annotator "ChessBase"]
[ECO "C76"]
[WhiteElo "2230"]
[BlackElo "2387"]
[PlyCount "76"]
[EventDate "2025.03.29"]
[EventType "swiss"]
[EventCountry "GRE"]
[SourceTitle "playchess.com"]
[Source "ChessBase"]
[SourceQuality "1"]
[TimeControl "40/5400+30:1800+30"]

1. e4 {[%emt 0:00:03]} e5 {[%emt 0:00:53]} 2. Nf3 {[%emt 0:00:08]} Nc6 {[%emt 0:00:03]} 3. Bb5 {[%emt 0:00:07]} a6 {[%emt 0:00:05]} 4. Ba4 {[%emt 0:00:05]} d6 {[%emt 0:00:05]} 5. O-O {[%emt 0:01:53]} Bd7 {[%emt 0:00:04]} 6. c3 {[%emt 0:15:50]} g6 {[%emt 0:00:05]} 7. d4 {[%emt 0:00:07]} Bg7 {[%emt 0:00:14]} 8. d5 {[%emt 0:05:32]} Nce7 {[%emt 0:00:19]} 9. c4 {[%emt 0:00:09]} b5 {[%emt 0:00:10]} 10. Bb3 {[%emt 0:07:02]} Nf6 {[%emt 0:00:40]} 11. Re1 {[%emt 0:00:27]} bxc4 {[%emt 0:00:31]} 12. Bxc4 {[%emt 0:00:07]} O-O {[%emt 0:00:29]} 13. Nc3 {[%emt 0:00:51]} c6 {[%emt 0:01:12]} 14. dxc6 {[%emt 0:08:33]} Bxc6 {[%emt 0:00:11]} 15. Bg5 {[%emt 0:00:26]} Ra7 {[%emt 0:05:31]} 16. Qd2 {[%emt 0:05:14]} Qb8 {[%emt 0:09:47]} 17. Rad1 {[%emt 0:01:30]} Nc8 {[%emt 0:00:20]} 18. h3 {[%emt 0:09:05]} Kh8 {[%emt 0:06:32]} 19. Re2 {[%emt 0:11:23]} Ng8 {[%emt 0:11:01]} 20. Be3 {[%emt 0:01:05]} Rd7 {[%emt 0:00:08]} 21. Bxa6 {[%emt 0:05:16]} f5 {[%emt 0:00:27]} 22. Qd3 {[%emt 0:00:56]} Qa8 {[%emt 0:27:46]} 23. Ng5 {[%emt 0:02:56]} h6 {[%emt 0:00:44]} 24. Bxc8 {[%emt 0:10:11]} Rxc8 {[%emt 0:00:09]} 25. Ne6 {[%emt 0:00:14]} fxe4 {[%emt 0:00:15]} 26. Qb1 {[%emt 0:00:58]} d5 {[%emt 0:03:56]} 27. Nxg7 {[%emt 0:00:59]} Kxg7 {[%emt 0:00:47]} 28. Red2 {[%emt 0:08:01]} d4 {[%emt 0:02:40]} 29. Bxd4 {[%emt 0:00:02]} exd4 {[%emt 0:00:44]} 30. Rxd4 {[%emt 0:00:01]} Rxd4 {[%emt 0:03:02]} 31. Rxd4 {[%emt 0:00:02]} Re8 {[%emt 0:00:51]} 32. Rd6 {[%emt 0:02:26]} Ne7 {[%emt 0:00:43]} 33. g4 {[%emt 0:03:09]} Nc8 {[%emt 0:01:40]} 34. Rd2 {[%emt 0:00:36]} e3 {[%emt 0:00:33]} 35. fxe3 {[%emt 0:00:05]} Rxe3 {[%emt 0:00:23]} 36. Rd8 {[%emt 0:02:29]} Rg3+ {[%emt 0:01:16]} 37. Kf2 {[%emt 0:00:28]} Qa7+ {[%emt 0:00:18]} 38. Kxg3 {[%emt 0:00:06]} Qe3+ {[%emt 0:00:05]} 0-1